bitfinex-derivatives/quotes_SOLF0:USTF0_20250202
["timestamp","ask_amount","ask_price","bid_price","bid_amount"]
[1738477312724,4.6809,213.67,213.64,0.03170089]
[1738477312929,4.6809,213.67,213.59,4.6824]
[1738477313125,4.6809,213.67,213.63,0.03424734]
[1738477314228,9.17595299,213.7,213.63,0.03424734]
[1738477314432,9.17595299,213.73,213.63,0.03424734]
[1738477314931,13.85555299,213.73,213.66,0.03096647]
[1738477315233,9.17595299,213.73,213.66,0.03096647]
[1738477315535,4.6792,213.75,213.66,0.03096647]
[1738477316636,4.6792,213.75,213.67,4.6808]
[1738477316834,4.6784,213.78,213.66,9.20691946]
[1738477318036,9.17595299,213.8,213.66,9.20691946]
[1738477318237,9.17595299,213.77,213.65,1.4394]
[1738477318433,9.17595299,213.77,213.71,0.02967014]
[1738477318840,4.6791,213.75,213.71,0.02967014]
[1738477319130,9.17595299,213.77,213.71,0.02967014]
[1738477320130,4.6795,213.73,213.71,0.02967014]
[1738477321635,4.6797,213.72,213.64,4.6814]
[1738477321835,9.17595299,213.74,213.6,9.17595299]
[1738477322440,4.6801,213.7,213.6,9.17595299]
[1738477322944,0.03261006,213.67,213.63,0.03294517]
[1738477323134,4.71341006,213.67,213.63,0.03294517]
[1738477324147,0.03261006,213.67,213.63,0.03294517]
[1738477325041,0.03261006,213.67,213.63,9.20889816]
[1738477325236,9.17595299,213.77,213.63,9.20889816]
[1738477325438,9.17595299,213.77,213.64,1.4996]
[1738477326342,9.17595299,213.77,213.68,0.03147895]
[1738477326549,1.4996,213.79,213.68,0.03147895]
[1738477327045,4.6788,213.76,213.69,4.6803]
[1738477327236,4.6788,213.76,213.68,0.03147895]
[1738477327837,9.17595299,213.83,213.69,9.17595299]
[1738477328046,1.4694,213.85,213.72,9.17595299]
[1738477328244,1.4694,213.85,213.74,0.03212355]
[1738477328441,4.6777,213.81,213.74,0.03212355]
[1738477329953,9.17595299,213.83,213.74,0.03212355]
[1738477330452,4.6787,213.77,213.74,0.03212355]
[1738477331348,9.17595299,213.8,213.74,0.03212355]
[1738477331556,4.679,213.75,213.74,0.03212355]
[1738477331746,9.17595299,213.75,213.62,9.17595299]
[1738477331947,4.6801,213.7,213.62,4.6817]
[1738477332643,4.6801,213.7,213.63,4.6816]
[1738477333049,0.03497239,213.69,213.64,0.03343535]
[1738477333851,0.03497239,213.69,213.66,4.6809]
[1738477334150,0.03497239,213.69,213.65,9.17595299]
[1738477335254,0.03497239,213.69,213.65,13.85695299]
[1738477336054,0.03497239,213.69,213.66,4.6809]
[1738477336454,0.03497239,213.69,213.65,9.17595299]
[1738477336656,0.03497239,213.69,213.68,4.6805]
[1738477338355,1.4095,213.78,213.68,9.17595299]
[1738477338661,1.4095,213.78,213.71,9.17595299]
[1738477338851,1.4095,213.78,213.71,4.6798]
[1738477339057,1.4095,213.78,213.68,9.17595299]
[1738477339253,4.6788,213.76,213.68,9.17595299]
[1738477339454,1.4095,213.78,213.71,0.03537196]
[1738477340050,4.6787,213.77,213.71,0.03537196]
[1738477340458,1.4095,213.78,213.71,0.03537196]
[1738477341654,9.17595299,213.9,213.75,9.17595299]
[1738477342057,9.17595299,213.9,213.8,0.03316292]
[1738477343859,4.6762,213.88,213.8,4.71106292]
[1738477344161,9.17595299,213.86,213.8,0.03316292]
[1738477344364,9.17595299,213.83,213.69,9.17595299]
[1738477344562,1.4602,213.82,213.69,9.17595299]
[1738477344955,4.6786,213.77,213.7,4.6799]
[1738477345363,1.4602,213.82,213.69,136.45556019]
[1738477345664,0.03416899,213.76,213.71,0.03569828]
[1738477346165,4.71296899,213.76,213.71,0.03569828]
[1738477347766,4.679,213.75,213.71,0.03569828]
[1738477348066,0.03416899,213.76,213.71,0.03569828]
[1738477351767,0.03416899,213.76,213.71,4.71559828]
[1738477352269,0.03416899,213.76,213.71,0.03569828]
[1738477352671,4.679,213.75,213.71,0.03569828]
[1738477352967,0.03416899,213.76,213.71,0.03569828]
[1738477354177,0.03416899,213.76,213.72,4.6796]
[1738477356170,0.03416899,213.76,213.71,0.03569828]
[1738477356379,0.03416899,213.76,213.75,13.85495299]
[1738477356675,0.03416899,213.76,213.72,9.17595299]
[1738477356876,0.03416899,213.76,213.72,4.6796]
[1738477357271,0.03416899,213.76,213.71,0.03569828]
[1738477357575,0.03416899,213.76,213.72,9.17595299]
[1738477359872,0.03416899,213.76,213.75,4.679]
[1738477361176,0.03416899,213.76,213.75,13.85495299]
[1738477366371,4.5499,213.91,213.79,4.678]
[1738477366571,4.5499,213.91,213.76,1.4637]
[1738477367481,4.5499,213.91,213.81,0.03254797]
[1738477368178,4.6762,213.88,213.81,0.03254797]
[1738477368581,4.5499,213.91,213.81,0.03254797]
[1738477368879,9.2255,213.91,213.85,4.6766]
[1738477369285,1.4885,213.91,213.87,4.6764]
[1738477369786,1.4885,213.91,213.87,4.71099733]
[1738477370380,1.4885,213.91,213.87,0.03459733]
[1738477370682,9.17595299,213.95,213.87,0.03459733]
[1738477370982,4.6749,213.94,213.87,0.03459733]
[1738477371185,4.6749,213.94,213.88,4.6762]
[1738477371380,9.17595299,214.02,213.87,9.21055032]
[1738477371682,13.84915299,214.02,213.87,9.17595299]
[1738477371882,13.84915299,214.02,213.92,0.03164471]
[1738477372385,4.6732,214.02,213.92,0.03164471]
[1738477372785,4.6732,214.02,213.95,4.6745]
[1738477372988,4.6732,214.02,213.9,9.17595299]
[1738477373188,1.4416,214.03,213.96,0.03509505]
[1738477374190,6.1145,214.03,213.96,0.03509505]
[1738477375291,6.1145,214.03,213.96,4.70949505]
[1738477375491,1.4416,214.03,213.96,4.70949505]
[1738477375786,4.6736,214.0,213.96,0.03509505]
[1738477376790,4.6738,213.99,213.96,0.03509505]
[1738477377496,4.6742,213.97,213.96,0.03509505]
[1738477377691,9.17595299,213.99,213.88,3.0546]
[1738477377897,9.17595299,213.99,213.84,9.17595299]
[1738477378893,0.03150142,213.94,213.89,0.0319786]
[1738477379492,4.70640142,213.94,213.89,0.0319786]
[1738477380198,4.6751,213.93,213.89,0.0319786]
[1738477380496,0.03150142,213.94,213.89,0.0319786]
[1738477380698,4.6753,213.92,213.89,0.0319786]
[1738477381999,4.70660142,213.94,213.89,0.0319786]
[1738477382203,0.03150142,213.94,213.89,0.0319786]
[1738477382398,0.03150142,213.94,213.91,4.6755]
[1738477382599,0.03150142,213.94,213.89,0.0319786]
[1738477383903,9.17595299,214.05,213.9,9.17595299]
[1738477384399,4.6733,214.01,213.93,4.6749]
[1738477384594,9.17595299,214.05,213.9,9.17595299]
[1738477384899,4.6729,214.03,213.95,4.6744]
[1738477385201,4.6729,214.03,213.95,0.03394747]
[1738477386001,9.17595299,214.05,213.95,0.03394747]
[1738477386202,13.84855299,214.05,213.96,4.6744]
[1738477386403,13.84855299,214.05,213.95,0.03394747]
[1738477386703,4.6726,214.05,213.95,0.03394747]
[1738477387094,4.6726,214.05,213.98,4.674]
[1738477387301,6.1073,214.06,213.93,9.17595299]
[1738477387496,6.1073,214.06,213.99,0.03554191]
[1738477387700,4.6727,214.04,213.99,0.03554191]
[1738477388498,1.4351,214.06,213.99,0.03554191]
[1738477388499,4.6729,214.03,213.99,0.03554191]
[1738477388694,9.17595299,214.05,213.99,0.03554191]
[1738477389395,4.6732,214.02,213.99,0.03554191]
[1738477390606,9.17595299,214.05,213.99,0.03554191]
[1738477390804,4.673,214.03,213.99,0.03554191]
[1738477391696,9.17595299,214.05,213.99,0.03554191]
[1738477392002,4.6731,214.02,213.99,0.03554191]
[1738477393706,1.4351,214.06,213.99,0.03554191]
[1738477394007,9.17595299,214.05,213.99,0.03554191]
[1738477394407,4.6735,214.0,213.99,0.03554191]
[1738477394906,4.6728,214.04,213.99,0.03554191]
[1738477395109,9.17595299,214.05,213.99,0.03554191]
[1738477396405,9.17595299,214.02,213.99,0.03554191]
[1738477396606,13.84925299,214.02,213.99,0.03554191]
[1738477397201,4.6734,214.01,213.99,0.03554191]
[1738477397400,9.17595299,214.02,213.89,1.4207]
[1738477397604,9.17595299,213.99,213.89,1.4207]
[1738477398009,9.17595299,213.99,213.84,9.17595299]
[1738477398607,0.03094722,213.94,213.89,0.03207712]
[1738477401908,4.70584722,213.94,213.89,0.03207712]
[1738477402512,4.6751,213.93,213.89,0.03207712]
[1738477404005,5.84795604,213.94,213.89,0.03207712]
[1738477404808,0.03094722,213.94,213.89,0.03207712]
[1738477405312,0.03094722,213.94,213.9,4.6755]
[1738477406012,0.03094722,213.94,213.92,4.6752]
[1738477406209,0.03094722,213.94,213.92,5.81700882]
[1738477406818,0.03094722,213.94,213.93,4.6751]
[1738477408109,5.81700882,214.02,213.96,4.6743]
[1738477409313,5.81700882,214.02,213.97,0.03047934]
[1738477409706,1.5539,214.03,213.97,0.03047934]
[1738477410112,1.5539,214.03,213.97,4.70467934]
[1738477411414,1.5539,214.03,213.98,4.674]
[1738477413016,4.6734,214.01,213.97,0.03047934]
[1738477414014,9.08184639,214.02,213.97,0.03047934]
[1738477414514,4.6734,214.01,213.97,0.03047934]
[1738477414713,9.08184639,214.02,213.97,0.03047934]
[1738477415316,9.08184639,214.02,213.88,9.08184639]
[1738477416309,0.03112759,213.97,213.93,0.03148249]
[1738477417807,0.03112759,213.97,213.96,4.6744]
[1738477421421,0.03112759,213.97,213.93,0.03148249]
[1738477421918,0.03112759,213.97,213.93,4.70648249]
[1738477423424,0.03112759,213.97,213.93,0.03148249]
[1738477432126,5.84540801,213.97,213.93,0.03148249]
[1738477432631,10.48898042,213.95,213.93,0.03148249]
[1738477434623,22.1,213.94,213.82,11.78286217]
[1738477434934,5.81428042,213.83,213.79,159.099509]
[1738477435832,5.81428042,213.83,213.8,0.03152614]
[1738477436333,0.03493104,213.84,213.8,0.03152614]
[1738477437336,4.71203104,213.84,213.8,0.03152614]
[1738477440234,4.6773,213.83,213.8,0.03152614]
[1738477441036,4.6777,213.81,213.8,0.03152614]
[1738477441238,0.03493104,213.84,213.8,0.03152614]
[1738477442838,4.71203104,213.84,213.8,0.03152614]
[1738477443541,0.03493104,213.84,213.8,0.03152614]
[1738477443741,4.6773,213.83,213.8,0.03152614]
[1738477445542,9.09687283,213.83,213.8,0.03152614]
[1738477445742,4.6777,213.81,213.8,0.03152614]
[1738477447242,4.6775,213.82,213.8,0.03152614]
[1738477447638,10.54737283,213.83,213.8,0.03152614]
[1738477448037,1.4505,213.83,213.8,0.03152614]
[1738477448234,4.6775,213.82,213.8,0.03152614]
[1738477448950,1.4505,213.83,213.8,0.03152614]
[1738477449149,0.03493104,213.84,213.8,0.03152614]
[1738477449850,0.03493104,213.84,213.8,4.70922614]
[1738477450047,0.03493104,213.84,213.8,0.03152614]
[1738477451651,4.71223104,213.84,213.8,0.03152614]
[1738477452452,0.03493104,213.84,213.8,0.03152614]
[1738477453348,0.03493104,213.84,213.8,4.70942614]
[1738477455656,0.03493104,213.84,213.8,0.03152614]
[1738477457857,0.03493104,213.84,213.83,4.6773]
[1738477458347,7.2313749,213.91,213.83,5.8208749]
[1738477458551,7.2313749,213.91,213.86,4.6765]
[1738477459048,5.8208749,213.89,213.84,4.6768]
[1738477459450,5.8208749,213.89,213.81,7.3344749]
[1738477459650,0.03480806,213.89,213.84,0.0310363]
[1738477460046,4.6762,213.88,213.84,0.0310363]
[1738477460254,9.0936363,213.87,213.84,0.0310363]
[1738477461559,4.6768,213.85,213.84,0.0310363]
[1738477462160,4.6773,213.83,213.76,4.6786]
[1738477462360,4.6773,213.83,213.72,1.4561]
[1738477463159,0.03566451,213.81,213.76,0.03386229]
[1738477463758,0.03566451,213.81,213.77,4.6784]
[1738477465961,0.03566451,213.81,213.76,0.03386229]
[1738477466161,0.03566451,213.81,213.79,4.678]
[1738477466760,0.03566451,213.81,213.76,0.03386229]
[1738477466963,0.03566451,213.81,213.77,4.6784]
[1738477467160,0.03566451,213.81,213.76,0.03386229]
[1738477469861,0.03566451,213.81,213.77,4.6785]
[1738477477770,0.03566451,213.81,213.76,0.03386229]
[1738477478066,0.03566451,213.81,213.78,4.6782]
[1738477479275,0.03566451,213.81,213.76,0.03386229]
[1738477479474,0.03566451,213.81,213.77,4.6785]
[1738477484183,0.03566451,213.81,213.78,4.6782]
[1738477484478,5.85776919,213.81,213.76,0.03386229]
[1738477485279,5.82210468,213.79,213.76,0.03386229]
[1738477486875,5.82210468,213.77,213.76,0.03386229]
[1738477488381,0.03566451,213.81,213.78,4.6783]
[1738477488382,5.85776919,213.81,213.78,4.6783]
[1738477488582,0.03566451,213.81,213.78,4.6783]
[1738477488783,5.85776919,213.81,213.76,0.03386229]
[1738477491182,5.82210468,213.79,213.76,0.03386229]
[1738477494387,10.50030468,213.79,213.76,0.03386229]
[1738477496689,4.6784,213.78,213.76,0.03386229]
[1738477497392,5.82210468,213.79,213.76,0.03386229]
[1738477497591,10.50020468,213.79,213.76,0.03386229]
[1738477500190,10.50070468,213.77,213.76,0.03386229]
[1738477500689,5.82210468,213.77,213.67,1.4236]
[1738477500891,5.82210468,213.73,213.69,4.6803]
[1738477501090,5.82210468,213.73,213.67,1.4236]
[1738477501286,5.82210468,213.75,213.67,7.24570468]
[1738477501786,0.03556663,213.73,213.69,0.03057594]
[1738477501984,0.03556663,213.73,213.69,5.85268062]
[1738477502190,0.03556663,213.73,213.71,5.82210468]
[1738477502393,0.03556663,213.73,213.72,4.6797]
[1738477505791,0.03556663,213.73,213.69,5.85268062]
[1738477505993,0.03556663,213.73,213.69,0.03057594]
[1738477507094,0.03556663,213.73,213.69,4.71087594]
[1738477507394,0.03556663,213.73,213.71,5.82210468]
[1738477507595,0.03556663,213.73,213.72,4.6797]
[1738477510192,5.82210468,213.87,213.77,5.82210468]
[1738477510395,5.82210468,213.85,213.78,1.4955]
[1738477510595,5.82210468,213.83,213.78,1.4955]
[1738477511101,5.85469943,213.83,213.78,1.52978616]
[1738477511898,5.82210468,213.81,213.78,1.52978616]
[1738477512497,5.82210468,213.81,213.78,0.03428616]
[1738477513495,5.82210468,213.79,213.78,0.03428616]
[1738477515799,5.82210468,213.81,213.78,0.03428616]
[1738477515999,5.85469943,213.83,213.78,0.03428616]
[1738477516198,5.85469943,213.83,213.78,4.71248616]
[1738477516397,5.85469943,213.83,213.78,0.03428616]
[1738477518498,5.85469943,213.83,213.79,4.6781]
[1738477518803,0.03259475,213.83,213.78,0.03428616]
[1738477519106,0.03259475,213.83,213.8,4.6779]
[1738477519697,0.03259475,213.83,213.78,5.85639084]
[1738477519894,5.82210468,213.89,213.82,5.82210468]
[1738477520493,5.82210468,213.89,213.85,4.6768]
[1738477520898,5.82210468,213.89,213.8,5.82210468]
[1738477521105,0.03258922,213.89,213.85,0.03150064]
[1738477521402,5.82210468,213.86,213.85,0.03150064]
[1738477524712,10.49870468,213.86,213.85,0.03150064]
[1738477525006,5.82210468,213.86,213.77,1.4313]
[1738477525209,5.82210468,213.81,213.72,7.25400468]
[1738477525507,5.82210468,213.81,213.72,8.74340468]
[1738477526404,0.03403635,213.79,213.76,4.6787]
[1738477529313,5.85614103,213.79,213.74,0.03167877]
[1738477529515,5.82210468,213.76,213.74,0.03167877]
[1738477530606,5.82210468,213.78,213.74,0.03167877]
[1738477530806,0.03403635,213.79,213.74,0.03167877]
[1738477531001,0.03403635,213.79,213.76,4.6786]
[1738477531206,0.03403635,213.79,213.74,0.03167877]
[1738477531610,5.82210468,213.78,213.74,0.03167877]
[1738477532211,5.82210468,213.76,213.74,0.03167877]
[1738477533613,10.50090468,213.76,213.74,0.03167877]
[1738477534110,5.82210468,213.76,213.74,0.03167877]
[1738477537529,0.03403635,213.79,213.74,0.03167877]
[1738477537819,0.03403635,213.79,213.76,5.82210468]
[1738477538020,0.03403635,213.79,213.78,4.6783]
[1738477539216,7.26570468,213.88,213.82,4.6775]
[1738477539415,5.82210468,213.92,213.84,5.82210468]
[1738477540115,5.82210468,213.92,213.85,4.6768]
[1738477540514,0.03223611,213.91,213.86,0.03490722]
[1738477540723,0.03223611,213.91,213.86,5.8570119]
[1738477541020,0.03223611,213.91,213.9,5.82210468]
[1738477541224,5.82210468,213.98,213.91,4.6754]
[1738477542020,5.82210468,213.95,213.87,7.38540468]
[1738477542216,5.82210468,213.93,213.87,1.5633]
[1738477542411,5.82210468,213.95,213.87,7.38540468]
[1738477542620,5.82210468,213.95,213.88,4.71066538]
[1738477543124,5.82210468,214.05,213.96,4.6743]
[1738477543323,5.82210468,214.07,213.99,5.82210468]
[1738477543621,5.82210468,214.09,214.02,4.6731]
[1738477543823,5.82210468,214.09,214.01,5.82210468]
[1738477544022,5.82210468,214.05,213.99,1.5323]
[1738477544223,4.6725,214.05,214.03,0.03022519]
[1738477544524,3.1,214.1,213.85,3.1]
[1738477544724,5.82210468,213.93,213.85,3.1]
[1738477544918,5.82210468,213.93,213.86,127.2796072]
[1738477545313,5.82210468,213.91,213.86,127.2796072]
[1738477545715,0.02984898,213.91,213.86,127.3146378]
[1738477546322,0.02984898,213.91,213.86,0.0350306]
[1738477549021,0.02984898,213.91,213.86,4.7115306]
[1738477549718,0.02984898,213.91,213.86,0.0350306]
[1738477550626,9.09141106,213.99,213.86,0.0350306]
[1738477550822,9.09141106,213.99,213.85,9.09141106]
[1738477551528,9.09141106,214.02,213.88,9.09141106]
[1738477551720,9.09141106,214.02,213.93,4.6749]
[1738477551921,4.6736,214.0,213.9,0.03386746]
[1738477552123,9.09141106,214.02,213.93,0.03048309]
[1738477552327,9.09141106,213.99,213.93,0.03048309]
[1738477552727,9.09141106,213.96,213.93,0.03048309]
[1738477554731,4.6747,213.95,213.93,0.03048309]
[1738477554935,9.09141106,213.96,213.93,0.03048309]
[1738477558332,13.76581106,213.96,213.93,0.03048309]
[1738477558933,13.76581106,213.96,213.81,12.01381106]
[1738477558934,9.09141106,213.96,213.81,9.09141106]
[1738477559239,9.09141106,213.89,213.75,9.09141106]
[1738477559436,9.09141106,213.89,213.8,4.6779]
[1738477559636,9.09141106,213.92,213.75,9.09141106]
[1738477559933,4.6757,213.91,213.8,4.6779]
[1738477560138,0.03076452,213.86,213.81,0.03479962]
[1738477560740,0.03076452,213.86,213.82,4.6773]
[1738477561040,0.03076452,213.86,213.81,0.03479962]
[1738477563038,4.6773,213.83,213.81,0.03479962]
[1738477563340,9.12217558,213.86,213.81,0.03479962]
[1738477564040,4.6775,213.82,213.81,0.03479962]
[1738477564342,9.09141106,213.83,213.73,1.4161]
[1738477564840,4.6776,213.82,213.74,4.6792]
[1738477565043,9.09141106,213.83,213.74,4.6792]
[1738477565439,0.03399824,213.81,213.76,0.03200049]
[1738477565843,4.71169824,213.81,213.76,0.03200049]
[1738477566948,0.03399824,213.81,213.79,4.6781]
[1738477567240,0.03399824,213.81,213.76,0.03200049]
[1738477568243,0.03399824,213.81,213.78,9.09141106]
[1738477568444,0.03399824,213.81,213.8,4.6779]
[1738477568837,9.09141106,213.92,213.78,9.09141106]
[1738477569145,9.09141106,213.95,213.81,9.09141106]
[1738477569740,4.6743,213.97,213.88,4.676]
[1738477570148,0.03015098,213.95,213.9,0.03332452]
[1738477571744,4.6749,213.94,213.9,0.03332452]
[1738477572345,13.76681106,213.92,213.9,0.03332452]
[1738477572545,13.76681106,213.92,213.78,9.09141106]
[1738477572546,9.09141106,213.92,213.78,9.09141106]
[1738477572948,9.09141106,213.92,213.83,4.6772]
[1738477573148,9.09141106,213.92,213.78,9.09141106]
[1738477573653,13.76691106,213.92,213.78,9.09141106]
[1738477573952,0.03098483,213.87,213.83,0.02978147]
[1738477574152,0.03098483,213.87,213.86,4.6766]
[1738477574350,0.03098483,213.87,213.69,116.3719072]
[1738477574351,14.05,213.85,213.69,116.3719072]
[1738477574653,18.18282212,213.73,213.67,23.96463625]
[1738477574848,18.18282212,213.68,213.46,359.11637562]
[1738477575154,9.09141106,213.6,213.59,19.73986028]
[1738477575368,4.6828,213.58,213.46,359.11637562]
[1738477575546,9.09141106,213.57,213.46,359.11637562]
[1738477575749,14.59857213,213.57,213.55,254.5912634]
[1738477575953,14.59857213,213.57,213.56,170.7756108]
[1738477576152,29.19714426,213.57,213.56,142.8179108]
[1738477576355,49.7253049,213.57,213.55,0.032049]
[1738477576948,35.12673277,213.57,213.37,1.4196]
[1738477577155,14.59857213,213.48,213.37,1.4196]
[1738477578056,0.03318225,213.45,213.43,4.686]
[1738477578251,0.03318225,213.45,213.4,0.0340234]
[1738477579058,14.63175438,213.45,213.4,0.0340234]
[1738477579551,51.19797373,213.41,213.37,1.38589173]
[1738477580158,44.07937373,213.41,213.39,4.6867]
[1738477580354,297.15666599,213.44,213.37,1.38589173]
[1738477580558,34.7342606,213.41,213.33,10.46401645]
[1738477580961,34.7342606,213.41,213.38,0.03225886]
[1738477581157,8.12966457,213.41,213.38,0.03225886]
[1738477581358,6.457e-05,213.41,213.38,0.03225886]
[1738477581562,6.38035849,213.42,213.38,0.03225886]
[1738477581757,6.38035849,213.42,213.38,4.687]
[1738477581962,6.38035849,213.42,213.29,14.59857213]
[1738477582365,0.0321545,213.38,213.33,0.03088238]
[1738477583167,0.0321545,213.38,213.36,4.6874]
[1738477583661,0.0321545,213.38,213.33,0.03088238]
[1738477583866,0.0321545,213.38,213.34,4.6879]
[1738477584270,0.0321545,213.38,213.33,0.03088238]
[1738477584473,0.0321545,213.38,213.36,4.6874]
[1738477584970,0.0321545,213.38,213.34,4.6879]
[1738477585473,0.0321545,213.38,213.33,0.03088238]
[1738477586275,0.0321545,213.38,213.34,4.6878]
[1738477586573,0.0321545,213.38,213.33,0.03088238]
[1738477587175,0.0321545,213.38,213.33,4.71888238]
[1738477587474,0.0321545,213.38,213.33,0.03088238]
[1738477587774,0.0321545,213.38,213.26,1.4758]
[1738477588470,0.0321545,213.38,213.36,4.6875]
[1738477588673,0.0321545,213.38,213.26,1.4758]
[1738477588871,0.0321545,213.38,213.32,4.6883]
[1738477589474,0.0321545,213.38,213.35,4.6878]
[1738477590772,0.0321545,213.38,213.34,0.03491367]
[1738477590971,0.0321545,213.38,213.26,1.4758]
[1738477591766,6.38035849,213.36,213.26,1.4758]
[1738477592172,6.38035849,213.36,213.31,4.6886]
[1738477592373,0.03594043,213.33,213.29,0.03595715]
[1738477593877,0.03594043,213.33,213.23,2.9233]
[1738477594877,0.03594043,213.33,213.27,4.6895]
[1738477595176,0.03594043,213.33,213.26,0.02974305]
[1738477595378,6.41629892,213.33,213.26,0.02974305]
[1738477595678,19.28747213,213.31,213.26,0.02974305]
[1738477597078,14.59857213,213.31,213.26,0.02974305]
[1738477597475,14.59857213,213.31,213.18,4.6914]
[1738477597680,14.59857213,213.31,213.13,17.56117213]
[1738477597980,6.38035849,213.32,213.27,4.6895]
[1738477598178,6.38035849,213.32,213.17,14.59857213]
[1738477598582,6.38035849,213.31,213.26,4.6896]
[1738477598784,0.03284564,213.27,213.22,0.0312829]
[1738477599076,0.03284564,213.27,213.22,0.03088299]
[1738477599285,0.03284564,213.27,213.18,1.53405588]
[1738477599784,0.03284564,213.27,213.26,4.6898]
[1738477600186,0.03284564,213.27,213.26,4.64325357]
[1738477602483,0.03284564,213.27,213.18,1.53405588]
[1738477603084,0.03284564,213.27,213.21,4.6906]
[1738477603384,0.03284564,213.27,213.18,1.53405588]
[1738477603587,0.03284564,213.27,213.22,0.03187244]
[1738477603885,4.72254564,213.27,213.22,0.03187244]
[1738477604986,14.63141777,213.27,213.22,0.03187244]
[1738477605980,4.69,213.25,213.22,0.03187244]
[1738477606383,14.63141777,213.27,213.22,0.03187244]
[1738477606686,14.63141777,213.27,213.13,2.9626]
[1738477606880,11.06975849,213.28,213.13,2.9626]
[1738477607789,0.03286518,213.23,213.22,4.6905]
[1738477608885,6.38035849,213.33,213.2,0.03564653]
[1738477609085,6.38035849,213.33,213.17,14.59857213]
[1738477609289,6.38035849,213.33,213.18,1.5581]
[1738477610088,0.03135041,213.28,213.23,0.0295558]
[1738477610289,0.03135041,213.28,213.27,4.6895]
[1738477610492,0.03135041,213.28,213.23,0.0295558]
[1738477610493,45.91393528,213.36,213.25,14.59857213]
[1738477610685,38.21233528,213.36,213.31,14.59857213]
[1738477610882,9.28343528,213.37,213.35,4.6878]
[1738477611082,3.528e-05,213.37,213.35,19.28637213]
[1738477611695,19.78973226,213.4,213.38,4.6871]
[1738477611995,127.99493434,213.42,213.39,14.59857213]
[1738477612385,98.67910427,213.42,213.4,4.6867]
[1738477612689,82.49280427,213.42,213.4,4.6867]
[1738477612889,74.21150427,213.42,213.4,4.6867]
[1738477613488,0.03069456,213.43,213.42,4.6862]
[1738477614892,0.03069456,213.43,213.39,19.31603411]
[1738477615288,0.03069456,213.43,213.39,14.62913411]
[1738477615492,0.03069456,213.43,213.42,25.62901184]
[1738477617198,1.4999,213.55,213.42,126.75569839]
[1738477617490,4.6845,213.5,213.42,126.75569839]
[1738477617699,1.4999,213.55,213.42,126.75569839]
[1738477618197,4.6841,213.52,213.42,126.75569839]
[1738477618392,0.03386425,213.51,213.46,0.0328935]
[1738477619697,4.6848,213.49,213.46,0.0328935]
[1738477620892,0.03386425,213.51,213.46,0.0328935]
[1738477621093,4.6846,213.5,213.46,0.0328935]
[1738477621595,0.03386425,213.51,213.46,0.0328935]
[1738477622098,4.6847,213.49,213.46,0.0328935]
[1738477623197,4.71836425,213.51,213.46,0.0328935]
[1738477623401,0.03386425,213.51,213.46,0.0328935]
[1738477624198,4.71816425,213.51,213.46,0.0328935]
[1738477624902,0.03386425,213.51,213.46,0.0328935]
[1738477625599,0.03386425,213.51,213.5,4.6845]
[1738477625992,0.03386425,213.51,213.46,0.0328935]
[1738477626801,0.03386425,213.51,213.46,4.7181935]
[1738477627001,0.03386425,213.51,213.46,0.0328935]
[1738477627701,0.03386425,213.51,213.47,4.6851]
[1738477630104,0.03386425,213.51,213.48,4.6848]
[1738477630305,0.03386425,213.51,213.46,0.0328935]
[1738477630699,0.03386425,213.51,213.5,4.6845]
[1738477651313,0.03386425,213.51,213.49,4.6847]
[1738477652209,0.03386425,213.51,213.5,4.6845]
[1738477652409,2.9555,213.6,213.49,9.11838411]
[1738477652610,2.9555,213.6,213.52,9.11838411]
[1738477652810,2.9555,213.6,213.49,9.11838411]
[1738477653509,0.03365287,213.57,213.52,0.03508067]
[1738477654113,0.03365287,213.57,213.53,4.6837]
[1738477655617,0.03365287,213.57,213.52,0.03508067]
[1738477656412,0.03365287,213.57,213.52,4.71908067]
[1738477657017,0.03365287,213.57,213.53,4.6838]
[1738477658820,0.03365287,213.57,213.52,4.71908067]
[1738477663935,0.03365287,213.57,213.56,4.6832]
[1738477664426,1.4288,213.65,213.55,9.11838411]
[1738477664626,1.4288,213.65,213.61,4.6819]
[1738477665436,1.4288,213.65,213.62,4.6818]
[1738477665628,1.46029184,213.65,213.6,0.03410177]
[1738477666931,0.03149184,213.65,213.61,4.6821]
[1738477667122,0.03149184,213.65,213.6,0.03410177]
[1738477668035,0.03149184,213.65,213.62,4.6818]
[1738477671735,0.03149184,213.65,213.6,0.03410177]
[1738477672937,0.03149184,213.65,213.6,4.71640177]
[1738477673540,0.03149184,213.65,213.6,0.03410177]
[1738477674241,0.03149184,213.65,213.62,4.6818]
[1738477674443,0.03149184,213.65,213.6,0.03410177]
[1738477675240,0.03149184,213.65,213.61,4.6819]
[1738477675641,0.03149184,213.65,213.62,9.11838411]
[1738477675840,0.03149184,213.65,213.64,4.6814]